Cogmind - Beta 9.2 @@@ ROGUE MODE // 2019.12.03 @ 10:28:40 Player: Cassie Rose Result: Destroyed by G-47 Trooper with Particle Gun Performance ------------- Evolutions (1) 500 Regions Visited (2) 400 Robots Destroyed (48) 240 Value Destroyed (856) 856 Prototype IDs (2) 40 Alien Tech Used (0) 0 Bonus (-110) -110 TOTAL SCORE: 1926 Bonus ------- High Alert Combat Kills 8 Friendly Fire -118 Cogmind --------- Core Integrity 0/400 Matter 300/300 Energy 100/100 System Corruption 0% Temperature Cool (9) Movement Core (150) Ox2 Location -9/Materials Parts ------- > --- POWER (1) -------- (None) > --- PROPULSION (3) --- (None) > --- UTILITY (3) ------ Medium Storage Unit > --- WEAPON (2) ------- (None) > --- INVENTORY (8) ---- Large Battery (300) Datajack Datajack Peak State ------------ > --- POWER ------------ Ion Engine > --- PROPULSION ------- Light Treads Light Treads Light Treads > --- UTILITY ---------- Medium Storage Unit Improved Terrain Scanner Light Armor Plating > --- WEAPON ----------- Heavy EM Pulse Gun Heavy EM Pulse Gun > --- INVENTORY -------- Light Treads Large Battery Light Cannon Light Cannon Datajack Datajack Mining Laser [Rating: 12] Favorites ----------- Power Ion Engine Engine Ion Engine Propulsion Light Treads Treads Light Treads Utility Improved Terrain Scanner Device Improved Terrain Scanner Storage Medium Storage Unit Protection Light Armor Plating Weapon Light Cannon Energy Gun EM Pulse Gun Ballistic Cannon Light Cannon Special Weapon Mining Laser Build | -11 -10 -9 ------- Run | Scr Mat Mat Slots Evolved 2 | . . 2 Power . | . . . Propulsion 1 | . . 1 Utility 1 | . . 1 Weapon . | . . . Parts Attached 28 | 7 8 13 Power 2 | 1 1 . Engine 2 | 1 1 . Core . | . . . Reactor . | . . . Propulsion 10 | 2 4 4 Treads 10 | 2 4 4 Leg . | . . . Wheel . | . . . Hover . | . . . Flight . | . . . Utility 6 | 2 1 3 Device 2 | 1 . 1 Storage 3 | 1 1 1 Processor . | . . . Hackware . | . . . Protection 1 | . . 1 Artifact . | . . . Weapon 10 | 2 2 6 Energy Gun 7 | 2 . 5 Energy Cannon . | . . . Ballistic Gun . | . . . Ballistic Cannon 2 | . 2 . Launcher . | . . . Special Weapon 1 | . . 1 Impact Weapon . | . . . Slashing Weapon . | . . . Piercing Weapon . | . . . Special Melee Weapon . | . . . Unidentified Prototypes . | . . . Parts Lost 13 | . 1 12 Power 1 | . . 1 Propulsion 3 | . . 3 Utility 3 | . . 3 Weapon 6 | . 1 5 Highest Loss Streak 11 | . 1 11 Average Slot Usage (%) 94 | . 100 86 Engine 12 | . 14 11 Treads 28 | . 28 28 Device 12 | . 14 9 Storage 12 | . 14 11 Protection 2 | . . 5 Energy Gun 9 | . 9 8 Ballistic Cannon 15 | . 18 11 Naked Turns . | . . . Heaviest Build 23 | 14 20 23 Greatest Support 60 | 40 40 60 Greatest Overweight (x) 4 | 2 . 4 Average Overweight (x) . | . . . Largest Inventory Capacity 8 | 6 8 8 Average Capacity 7 | 5 7 8 Most Carried 8 | 3 8 8 Average Carried 5 | 1 6 5 Final Capacity 8 | 6 8 8 Final Carried 6 | 3 6 3 Class Distribution -------------------- 81% | Mutant 18% | Scavenger-Mutant Dominant Class ---------------- Mutant | -10/Materials Scavenger-Mutant | -9/Materials Resources | -11 -10 -9 ----------- Run | Scr Mat Mat Matter Collected 876 | 240 367 269 Remotely . | . . . Salvage Created 1435 | 185 495 755 Parts 84 | 14 36 34 Haulers Intercepted 3 | . 2 1 Recyclers Shooed 2 | . . 2 Parts Field Recycled . | . . . Retrieved Matter . | . . . Parts Self-Destructed . | . . . Prevented . | . . . Kills | -11 -10 -9 ------- Run | Scr Mat Mat Combat Hostiles Destroyed 27 | . 16 11 Guns 8 | . 3 5 Cannons 19 | . 13 6 Classes Destroyed 8 | 2 5 1 Worker 4 | . 1 3 Tunneler 5 | 5 . . Hauler 3 | . 2 1 Recycler 4 | 1 . 3 Watcher 4 | . 2 2 Swarmer 10 | . 6 4 Grunt 16 | . 10 6 Sentry 2 | . . 2 Best Kill Streak 8 | 2 4 8 Combat Bots Only 4 | . 4 4 Max Kills in Single Turn 2 | 1 2 2 Gunslinging . | . . . Exploded . | . . . Melee . | . . . Uniques/NPCs Destroyed . | . . . Combat | -11 -10 -9 -------- Run | Scr Mat Mat Damage Taken 1957 | . 631 1326 Core 529 | . 121 408 Absorbed by Shields . | . . . Core Remaining (%) 75 | 100 51 . Volleys Fired 111 | 11 56 44 Largest 2 | 2 2 2 Hottest 100 | 90 75 100 Shots Fired 214 | 22 111 81 Gun 104 | 22 32 50 Cannon 109 | . 79 30 Launcher . | . . . Special 1 | . . 1 Kinetic 109 | . 79 30 Thermal 12 | 11 . 1 Explosive . | . . . Electromagnetic 93 | 11 32 50 Robot Hit Streak 10 | 3 10 8 Robot Miss Streak 3 | 2 3 3 Penetration Max . | . . . Secondary Targets 3 | . . 3 Max Gunslinging Chain 1 | . . 1 Shots Hit Robots 121 | 13 60 48 Core Hits 57 | 7 24 26 Critical Hits 1 | . . 1 Critical Kills . | . . . Critical Parts Destroyed 1 | . . 1 Melee Attacks . | . . . Impact . | . . . Slashing . | . . . Piercing . | . . . Sneak Attacks . | . . . Combat Hostiles . | . . . Follow-up Attacks . | . . . Damage Inflicted 2309 | 185 1019 1105 Guns 1049 | 149 271 629 Cannons 980 | . 720 260 Explosions 256 | 36 28 192 Melee . | . . . Ramming . | . . . Kinetic 980 | . 720 260 Thermal 356 | 112 28 216 Explosive . | . . . Electromagnetic 973 | 73 271 629 Impact . | . . . Slashing . | . . . Piercing . | . . . Highest Corruption . | . . . Average Corruption . | . . . Corruption Purged . | . . . Overload Shots . | . . . Overflow Damage 28 | . 10 18 Projectiles . | . . . Explosions 28 | . 10 18 Melee . | . . . Knockbacks 11 | . 10 1 Impact . | . . . Kinetic 10 | . 9 1 Secondary 1 | . 1 . Self-Inflicted Damage 34 | . . 34 Shots 1 | . . 1 Rammed . | . . . Targets Rammed . | . . . Kicked . | . . . Crushed . | . . . Highest Temperature 555 | 180 111 555 Average Temperature 98 | 62 32 204 Received Heat Transfer 840 | . 186 654 Effects 18 | . . 18 Shutdowns 4 | . . 4 Energy Bleed 1 | . . 1 Interference 4 | . . 4 Short Circuit 1 | . . 1 Damage (minor) 2 | . . 2 Damage (major) 6 | . . 6 Siege Activations . | . . . Robots Corrupted . | . . . Combat Hostiles . | . . . Parts Fried 3 | . . 3 Impact Corruptions . | . . . Robots Melted . | . . . Combat Hostiles . | . . . Parts Melted . | . . . Heat Transferred 622 | 272 50 300 Parts Sabotaged . | . . . Parts Stolen . | . . . Parts Stripped . | . . . Power Chain Reactions 4 | 1 1 2 Missiles Intercepted . | . . . Alert | -11 -10 -9 ------- Run | Scr Mat Mat Peak Influence 434 | 30 434 295 Average Influence 130 | 16 150 143 Maximum Alert Level 2 | . 2 1 Low Security (%) 70 | 100 63 69 Level 1 26 | . 29 30 Level 2 3 | . 6 . Level 3 . | . . . Level 4 . | . . . Level 5 . | . . . High Security . | . . . Max Security . | . . . Squads Dispatched 3 | . 3 . Investigation 2 | . 2 . Extermination . | . . . Reinforcement 1 | . 1 . Assault . | . . . Garrison . | . . . Intercept . | . . . Construction Impeded . | . . . Haulers Reinforced . | . . . Stealth | -11 -10 -9 --------- Run | Scr Mat Mat Distress Signals 6 | . 3 3 Communications Jammed . | . . . Distress Signals . | . . . Times Spotted 49 | . 29 20 Peak Tracking Total 6 | . 6 5 Tactical Retreats 3 | . . 3 Traps | -11 -10 -9 ------- Run | Scr Mat Mat Traps Triggered . | . . . Indirectly . | . . . Trap Hack Attempts . | . . . Triggered . | . . . Disarmed . | . . . Reprogrammed . | . . . Reused . | . . . Traps Extracted . | . . . Installed . | . . . Triggered 1 | . 1 . Machines | -11 -10 -9 ---------- Run | Scr Mat Mat Machines Disabled 1 | . 1 . Max in Single Turn 1 | . 1 . Machines Sabotaged . | . . . Garrisons Compromised . | . . . Overloaded Fab Kills . | . . . Fab Network Shutdowns . | . . . Hacking | -11 -10 -9 --------- Run | Scr Mat Mat Machines Accessed 6 | . 3 3 Terminals 6 | . 3 3 Fabricators . | . . . Repair Stations . | . . . Recycling Units . | . . . Scanalyzers . | . . . Garrison Access . | . . . Total Hacks 25 | . 12 13 Successful 12 | . 4 8 Failed 13 | . 8 5 Catastrophic 2 | . 1 1 Database Lockouts . | . . . Manual 18 | . 11 7 Terminals 25 | . 12 13 Fabricators . | . . . Repair Stations . | . . . Recycling Units . | . . . Scanalyzers . | . . . Garrison Access . | . . . Terminal Hacks 5 | . 1 4 Prototype ID Bank 1 | . . 1 Unreport Threat 1 | . . 1 Hauler Manifests 2 | . 1 1 Zone Layout 1 | . . 1 Fabricator Hacks . | . . . Repair Station Hacks . | . . . Recycling Unit Hacks . | . . . Scanalyzer . | . . . Garrison Access Hacks . | . . . Unauthorized Hacks 20 | . 10 10 Terminals 7 | . 3 4 Assimilate 1 | . . 1 Botnet 6 | . 3 3 Fabricators . | . . . Repair Stations . | . . . Recycling Units . | . . . Scanalyzers . | . . . Garrison Access . | . . . Data Cores Recovered . | . . . Used . | . . . Hacking Detections 5 | . 3 2 Full Trace Events . | . . . Feedback Events . | . . . Feedback Blocked . | . . . Robot Schematics Acquired . | . . . Robots Built . | . . . Matter . | . . . Time . | . . . Total Robot Build Rating . | . . . Part Schematics Acquired . | . . . Parts Built . | . . . Matter . | . . . Time . | . . . Total Part Build Rating . | . . . Parts Repaired . | . . . Time . | . . . Parts Recycled . | . . . Recycled Matter . | . . . Retrieved Matter . | . . . Retrieved Components . | . . . Parts Scanalyzed . | . . . Part Schematics Acquired . | . . . Parts Damaged . | . . . Bothacking | -11 -10 -9 ------------ Run | Scr Mat Mat Used RIF Installer . | . . . Robots Hacked . | . . . Non-combat . | . . . Combat . | . . . Robot Hacks Applied . | . . . Relay Couplers Released . | . . . Robots Rewired 1 | . . 1 Allies Hacked . | . . . Hacks Repelled . | . . . Allies | -11 -10 -9 -------- Run | Scr Mat Mat Total Allies 1 | . . 1 Largest Group 1 | . . 1 Highest-Rated Group 16 | . . 16 Highest-Rated Ally 16 | . . 16 Total Orders . | . . . Ally Attacks . | . . . Total Damage . | . . . Kills . | . . . Allies Corrupted . | . . . Allies Melted . | . . . Intel | -11 -10 -9 ------- Run | Scr Mat Mat Robot Analysis Total . | . . . Derelict Logs Recovered . | . . . Drone Launches . | . . . Drone Recoveries . | . . . Exploration | -11 -10 -9 ------------- Run | Scr Mat Mat Turns Passed 1848 | 236 977 635 Spaces Moved 846 | 113 454 279 Core 29 | 8 . 21 Treads 817 | 105 454 258 Legs . | . . . Wheels . | . . . Hover . | . . . Flight . | . . . Fastest Speed 50 | 50 160 150 Average Speed 161 | 155 160 166 Slowest Speed 250 | 160 160 250 Overloaded Moves . | . . . Propulsion Burnouts . | . . . Robots Hopped . | . . . Cave-ins Triggered . | . . . Exploration Rate (%) 35 | 6 74 25 Regions Visited 2 Branch Regions . Pre-discovered Areas . | . . . Known Exits Taken . | . . . Unknown Exits Taken 2 | 1 1 . Scrap Searched . | . . . Spaces Dug . | . . . Terrain Destroyed 13 | 2 4 7 Melee . | . . . Projectile . | . . . AOE 13 | 2 4 7 Actions | -11 -10 -9 --------- Run | Scr Mat Mat Total 1111 | 152 594 365 Wait 85 | 12 60 13 Move 844 | 112 453 279 Hop . | . . . Pick Up 28 | 10 10 8 Fast Attach . | . . . Attach 14 | 7 1 6 Detach . | . . . Swap 14 | . 7 7 Drop 12 | . 7 5 Fire 111 | 11 56 44 Melee . | . . . Ram . | . . . Kick . | . . . Crush . | . . . Escape Stasis . | . . . Rewire 3 | . . 3 Trap . | . . . Miscellaneous . | . . . Route ------- -11/Scrapyard -10/Materials (discovered 2 exits: *Mat / [*Min]) -9/Materials History --------- Turn | Location | Event 7 | -11/Scrapyard | Discovered new exit (range 16) 237 | -11/Scrapyard | Entered Materials 314 | -10/Materials | Build established: Mutant 545 | -10/Materials | Discovered new exit (range 14) 1067 | -10/Materials | Discovered new exit (range 15) 1214 | -10/Materials | Entered another Materials area 1214 | -9/Materials | Evolved 2 slots: Propulsion x1, Utility x1 1727 | -9/Materials | Build established: Scavenger-Mutant 1785 | -9/Materials | Core integrity fell below 50% 1821 | -9/Materials | Core integrity fell below 20% 1849 | -9/Materials | Destroyed by G-47 Trooper with Particle Gun Last Messages --------------- 01816_ Recycling unit begins recycling process. 01816_ K-01 Serf collects debris. 01818_ R-06 Scavenger inserts Imp. Heat Sink into recycling unit. 01819_ K-01 Serf collects debris. 01821_ R-06 Scavenger inserts Particle Gun into recycling unit. 01822_ Recycling unit begins recycling process. 01823_ K-01 Serf collects debris. 01824_ R-06 Scavenger inserts Hvy. EM Pulse Gun into recycling unit. 01824_ Imp. Terrain Scanner destroyed. 01826_ K-01 Serf collects debris. 01831_ R-06 Scavenger inserts Aluminum Leg into recycling unit. 01832_ Recycling unit begins recycling process. 01834_ R-06 Scavenger inserts Wheel into recycling unit. 01837_ K-01 Serf cleans the Recycling Unit. 01837_ R-06 Scavenger inserts Visual Processing Unit into recycling unit. 01838_ Recycling unit begins recycling process. 01839_ Recycling unit begins matter transfer process. 01840_ U-05 Engineer lays Concrete. 01847_ Ion Engine destroyed. 01847_ K-01 Serf cleans the Recycling Unit. Map ----- +----------------------------------------------------+ | ?????????????????????????????????????????????????? | | ?????????????????????????????????????????????????? | | ?????????????????????????????????????????????????? | | ?????????????????????????????????????????????????? | | ?????????????????????????????????????????????????? | | ?????????????????????????????????????????????????? | | ?????????????????????????????????????????????????? | | ?????????????????????????????????????????????????? | | ?????????????????????????????????????????????????? | | ?????????????????????????????????????????????????? | | ?????????????????????? ????????????????????????? | | ?????????????????????# +???????????????????????? | | ?????????????????????# #???????????????????????? | | ?????????????????????# #???????????????????????? | | ?????#????? ?????????# #???????????????????????? | | ????????#???? #??????# #???????????????????????? | | #??#????# ## ?# #???????????????????????? | | ######### ## ?# #???????????????????????? | | ###+######+### #???????????????????????? | | ##??????????????????????? | | ???????????????????????? | | ### **k !!#???????????????????????? | | ?## ######## ** !!#?######????????????????? | | ??#######??????# # T #????????????????? | | ##########??##?# k # w #????????????????? | | ######### "Y" u @ """ #????????????????? | | """ # %% """ # """ #????????????????? | | """ +% % %% # """ #????????????????? | | """ #* %%%g #? !#????????????????? | | ###%#####+####### #?######????????????????? | | ### # !* ???# #???????????????????????? | | "T" #?#%# ?#?# #???????????????????????? | | """ #?# # """ """ ??# #???????????????????????? | | #?# # """ """ #?# #???????????????????????? | | ####/###?# # """ """ #?? #???????????????????????? | | #?# #???# # #?? #???????????????????????? | | ### ##### # ?#?? #???????????????????????? | | # ??? #???????????????????????? | | #########+#########???? ????????????????????????? | | #??#??# #????????? ????????????????????????? | | ###????#"S #????????? ????????????????????????? | | #????#""" #??????????????????????????????????? | | ##??## "" #??????????????????????????????????? | | #????# ##?????????????????????????????????? | | #????# #??#???????????????????????????????? | | #?#??########??????????????????????????????????? | | #??????????????????????????????????????????????? | | ###???#???????????????#??????????????????????????? | | ?????????????????????????????????????????????????? | | ????#????????????????????????????????????????????? | +----------------------------------------------------+ Best States ------------- Heat Dissipation 28 Energy Generation 10 Energy Capacity 250 Matter Stores 300 Matter Capacity 300 Sight Range 16 Terrain Scan Range 16 Terrain Scan Density 10 Armor Coverage 150 Evasion (%) 40 Recoil Reduction 3 Item Schematics ----------------- None Robot Schematics ------------------ None Fabricated ------------ Nothing Alien Tech Used ----------------- None Achievements -------------- None Challenges ------------ None Game ------ Seed AssembledMetafieldStabilizer Manual? 0 Play Time 00:19:42 Cumulative 47.7 hours Start 2019.12.03 @ 10:09:44 End 2019.12.03 @ 10:28:40 Sessions 1 Manual Loads 0 Difficulty Rogue Special Mode None Game No. 71 Rogue 71 Adventurer 0 Explorer 0 Win Type - Total 0 Types 0/0/0/0/0/0/0 Lore% 22 Gallery% 21 Achievement% 23 Wizard Run 0 Options --------- ASCII 0 Keyboard 0 Movement Arrows Keybinds 0 Fullscreen 1 Font 18/SmallcapsGlow Map View 76x50 Tactical HUD 1 Map Filters NONE Filters LOW_CONTRAST(13,24,33)|BRIGHTNESS(120)|SATURATION(80) Steam 1 RUN: 28f2ca0f-6532-4756-9125-2a0bb539fe35